[Event "Early-Titled-Tuesday-Blitz-April-02-2024"]
[Site "Chess.com"]
[Date "2024.04.02"]
[Round "5"]
[White "Iskusnyh"]
[Black "Aleksandar-Topalov"]
[Result "1-0"]
[WhiteElo "2620"]
[BlackElo "2338"]
[TimeControl "180+1"]
[EndTime "8:51:42 PDT"]
[Termination "Iskusnyh won by resignation"]

1. d4 {[%clk 0:02:59.8]} 1... e6 {[%clk 0:02:56.7]} 2. c4 {[%clk 0:02:57.6]}
2... f5 {[%clk 0:02:49.8]} 3. g3 {[%clk 0:02:55.3]} 3... Nf6 {[%clk 0:02:47.3]}
4. Bg2 {[%clk 0:02:54.8]} 4... Be7 {[%clk 0:02:47.4]} 5. Nf3 {[%clk 0:02:54.5]}
5... O-O {[%clk 0:02:47.5]} 6. O-O {[%clk 0:02:53.4]} 6... d6 {[%clk 0:02:46.6]}
7. b4 {[%clk 0:02:53.6]} 7... Ne4 {[%clk 0:02:41.5]} 8. Bb2 {[%clk 0:02:51.4]}
8... Bf6 {[%clk 0:02:40.4]} 9. Nbd2 {[%clk 0:02:50.3]} 9... Nxd2 {[%clk
0:02:40.3]} 10. Qxd2 {[%clk 0:02:48.3]} 10... Qe7 {[%clk 0:02:32.1]} 11. c5
{[%clk 0:02:42.1]} 11... d5 {[%clk 0:02:26.9]} 12. b5 {[%clk 0:02:34.8]} 12...
c6 {[%clk 0:02:23.2]} 13. a4 {[%clk 0:02:31.6]} 13... Nd7 {[%clk 0:02:22.6]} 14.
a5 {[%clk 0:02:20.7]} 14... a6 {[%clk 0:02:22.7]} 15. bxa6 {[%clk 0:02:17.1]}
15... Rxa6 {[%clk 0:02:18]} 16. Ra3 {[%clk 0:02:12]} 16... Re8 {[%clk
0:02:01.5]} 17. Rb1 {[%clk 0:01:57.8]} 17... e5 {[%clk 0:01:58.6]} 18. dxe5
{[%clk 0:01:57.2]} 18... Nxe5 {[%clk 0:01:58.5]} 19. Bxe5 {[%clk 0:01:54.9]}
19... Bxe5 {[%clk 0:01:58.6]} 20. Nxe5 {[%clk 0:01:54.8]} 20... Qxe5 {[%clk
0:01:55.2]} 21. Re3 {[%clk 0:01:54.2]} 1-0

[Event "Early-Titled-Tuesday-Blitz-April-02-2024"]
[Site "Chess.com"]
[Date "2024.04.02"]
[Round "5"]
[White "mertfelin"]
[Black "Flaccidmoves"]
[Result "0-1"]
[WhiteElo "2273"]
[BlackElo "2436"]
[TimeControl "180+1"]
[EndTime "8:51:59 PDT"]
[Termination "Flaccidmoves won by resignation"]

1. e4 {[%clk 0:02:59.6]} 1... Nf6 {[%clk 0:02:56.7]} 2. e5 {[%clk 0:02:59.2]}
2... Nd5 {[%clk 0:02:57.3]} 3. d4 {[%clk 0:02:59.9]} 3... d6 {[%clk 0:02:57.4]}
4. c4 {[%clk 0:03:00.7]} 4... Nb6 {[%clk 0:02:57.3]} 5. exd6 {[%clk 0:03:01.5]}
5... exd6 {[%clk 0:02:57.9]} 6. Nc3 {[%clk 0:03:02.2]} 6... Be7 {[%clk
0:02:56.8]} 7. Be2 {[%clk 0:02:59.4]} 7... Bf5 {[%clk 0:02:55.1]} 8. Nf3 {[%clk
0:02:57.2]} 8... O-O {[%clk 0:02:54.5]} 9. O-O {[%clk 0:02:57.1]} 9... N8d7
{[%clk 0:02:53]} 10. b3 {[%clk 0:02:56.9]} 10... Re8 {[%clk 0:02:42.2]} 11. h3
{[%clk 0:02:56.1]} 11... c6 {[%clk 0:02:30.3]} 12. Bf4 {[%clk 0:02:52.6]} 12...
Nf6 {[%clk 0:02:26.6]} 13. Re1 {[%clk 0:02:48]} 13... Ne4 {[%clk 0:02:22.2]} 14.
Nxe4 {[%clk 0:02:46.8]} 14... Bxe4 {[%clk 0:02:23.1]} 15. Bd3 {[%clk 0:02:46]}
15... Bxd3 {[%clk 0:02:11.1]} 16. Qxd3 {[%clk 0:02:46.9]} 16... d5 {[%clk
0:02:01.3]} 17. c5 {[%clk 0:02:45.8]} 17... Nd7 {[%clk 0:02:00.8]} 18. Be5
{[%clk 0:02:41]} 18... Bf6 {[%clk 0:01:53.3]} 19. Bxf6 {[%clk 0:02:38.4]} 19...
Qxf6 {[%clk 0:01:54.2]} 20. Re2 {[%clk 0:02:36.5]} 20... Nxc5 {[%clk 0:01:45.6]}
21. Qc2 {[%clk 0:02:29.8]} 21... Rxe2 {[%clk 0:01:31.6]} 22. Qxe2 {[%clk
0:02:29.7]} 22... Ne4 {[%clk 0:01:31.1]} 23. Re1 {[%clk 0:02:28.9]} 23... Re8
{[%clk 0:01:25.9]} 24. Qd3 {[%clk 0:02:27.1]} 24... h6 {[%clk 0:01:22.5]} 25. b4
{[%clk 0:02:24.5]} 25... Re6 {[%clk 0:01:09.5]} 26. Ne5 {[%clk 0:02:24.8]} 26...
Qxf2+ {[%clk 0:01:08.6]} 0-1

[Event "Early-Titled-Tuesday-Blitz-April-02-2024"]
[Site "Chess.com"]
[Date "2024.04.02"]
[Round "5"]
[White "Squirlolz"]
[Black "Road2GM3000"]
[Result "0-1"]
[WhiteElo "2583"]
[BlackElo "2444"]
[TimeControl "180+1"]
[EndTime "8:52:08 PDT"]
[Termination "Road2GM3000 won by resignation"]

1. b3 {[%clk 0:03:00.9]} 1... d5 {[%clk 0:02:59.4]} 2. Bb2 {[%clk 0:03:01.8]}
2... c6 {[%clk 0:02:59.8]} 3. e3 {[%clk 0:03:02.1]} 3... Nf6 {[%clk 0:03:00.5]}
4. f4 {[%clk 0:03:02.8]} 4... g6 {[%clk 0:03:01.3]} 5. Nf3 {[%clk 0:03:03.4]}
5... Bg7 {[%clk 0:03:02.1]} 6. g3 {[%clk 0:03:04.1]} 6... O-O {[%clk 0:03:03]}
7. Bg2 {[%clk 0:03:04.7]} 7... Ne8 {[%clk 0:03:03.9]} 8. Nc3 {[%clk 0:03:03.9]}
8... Bg4 {[%clk 0:03:03.9]} 9. h3 {[%clk 0:03:03.6]} 9... Bxf3 {[%clk 0:03:04]}
10. Qxf3 {[%clk 0:03:04]} 10... Nd7 {[%clk 0:03:04.5]} 11. h4 {[%clk 0:03:03.4]}
11... e5 {[%clk 0:03:05]} 12. h5 {[%clk 0:03:04]} 12... e4 {[%clk 0:03:03.6]}
13. Qe2 {[%clk 0:03:02.8]} 13... g5 {[%clk 0:02:44.5]} 14. h6 {[%clk 0:03:00.8]}
14... Bh8 {[%clk 0:02:43.5]} 15. Qh5 {[%clk 0:02:56]} 15... f5 {[%clk
0:02:37.3]} 16. fxg5 {[%clk 0:02:49]} 16... Ne5 {[%clk 0:02:33.2]} 17. O-O-O
{[%clk 0:02:40.6]} 17... Nd6 {[%clk 0:02:27.4]} 18. Ne2 {[%clk 0:02:38.9]} 18...
Ng6 {[%clk 0:02:26.8]} 19. Nf4 {[%clk 0:02:38.6]} 19... Bxb2+ {[%clk 0:02:24.3]}
20. Kxb2 {[%clk 0:02:39.5]} 20... Qe8 {[%clk 0:02:20.3]} 21. Nxg6 {[%clk
0:02:09.2]} 21... hxg6 {[%clk 0:02:19.7]} 22. h7+ {[%clk 0:02:03.3]} 22... Kh8
{[%clk 0:02:20.4]} 23. Qh6 {[%clk 0:02:01.9]} 23... Rd8 {[%clk 0:02:19.5]} 24.
Bh3 {[%clk 0:01:46.6]} 24... Rd7 {[%clk 0:02:18.7]} 25. Rdf1 {[%clk 0:01:40.7]}
25... Rxh7 {[%clk 0:02:08]} 26. Bxf5 {[%clk 0:01:32.5]} 26... Rxh6 {[%clk
0:02:06]} 27. Rxh6+ {[%clk 0:01:33.4]} 27... Kg7 {[%clk 0:01:59.4]} 28. Bxg6
{[%clk 0:01:27.9]} 28... Qe5+ {[%clk 0:01:53.6]} 0-1

[Event "Early-Titled-Tuesday-Blitz-April-02-2024"]
[Site "Chess.com"]
[Date "2024.04.02"]
[Round "5"]
[White "WCM-Mexicana"]
[Black "bazar-wokzal"]
[Result "0-1"]
[WhiteElo "2260"]
[BlackElo "2558"]
[TimeControl "180+1"]
[EndTime "8:52:09 PDT"]
[Termination "bazar-wokzal won by resignation"]

1. d4 {[%clk 0:02:58.5]} 1... Nf6 {[%clk 0:02:01.7]} 2. c4 {[%clk 0:02:57.6]}
2... Nc6 {[%clk 0:01:56.2]} 3. Nc3 {[%clk 0:02:56.9]} 3... e5 {[%clk 0:01:55.8]}
4. d5 {[%clk 0:02:55.6]} 4... Ne7 {[%clk 0:01:54.6]} 5. e4 {[%clk 0:02:55]} 5...
Ng6 {[%clk 0:01:49.5]} 6. g3 {[%clk 0:02:53.5]} 6... Bc5 {[%clk 0:01:48.6]} 7.
Bg2 {[%clk 0:02:53.2]} 7... a5 {[%clk 0:01:46.5]} 8. Nge2 {[%clk 0:02:51.2]}
8... d6 {[%clk 0:01:45.3]} 9. O-O {[%clk 0:02:49.8]} 9... h5 {[%clk 0:01:45.2]}
10. h4 {[%clk 0:02:43]} 10... Ng4 {[%clk 0:01:44.6]} 11. Bd2 {[%clk 0:02:22.2]}
11... Nxh4 {[%clk 0:01:42.9]} 12. Nc1 {[%clk 0:02:11.5]} 12... Qf6 {[%clk
0:01:33]} 13. Nd3 {[%clk 0:02:08.5]} 13... Ba7 {[%clk 0:01:23.5]} 14. gxh4
{[%clk 0:01:54.2]} 14... Qxh4 {[%clk 0:01:20.1]} 15. Re1 {[%clk 0:01:54.5]}
15... Nxf2 {[%clk 0:01:13.1]} 16. Nxf2 {[%clk 0:01:50.4]} 16... Qxf2+ {[%clk
0:01:11.7]} 17. Kh2 {[%clk 0:01:48.1]} 17... Qh4+ {[%clk 0:01:11.7]} 0-1

[Event "Early-Titled-Tuesday-Blitz-April-02-2024"]
[Site "Chess.com"]
[Date "2024.04.02"]
[Round "5"]
[White "Sanyura"]
[Black "Anton_Demchenko"]
[Result "0-1"]
[WhiteElo "2616"]
[BlackElo "2971"]
[TimeControl "180+1"]
[EndTime "8:52:34 PDT"]
[Termination "Anton_Demchenko won by resignation"]

1. e4 {[%clk 0:03:00.9]} 1... e5 {[%clk 0:03:00]} 2. Nf3 {[%clk 0:02:54.3]} 2...
Nc6 {[%clk 0:02:58]} 3. Bb5 {[%clk 0:02:52.1]} 3... a6 {[%clk 0:02:57.7]} 4. Ba4
{[%clk 0:02:49.9]} 4... Nge7 {[%clk 0:02:57.6]} 5. O-O {[%clk 0:02:39.9]} 5...
Ng6 {[%clk 0:02:57.3]} 6. c3 {[%clk 0:02:37.5]} 6... d6 {[%clk 0:02:55.8]} 7. d4
{[%clk 0:02:36.6]} 7... Bd7 {[%clk 0:02:56.1]} 8. Bg5 {[%clk 0:02:32.7]} 8...
Be7 {[%clk 0:02:55.9]} 9. Bxe7 {[%clk 0:02:26.9]} 9... Qxe7 {[%clk 0:02:56.8]}
10. Nbd2 {[%clk 0:02:21.7]} 10... O-O {[%clk 0:02:55.7]} 11. Bxc6 {[%clk
0:02:10.6]} 11... Bxc6 {[%clk 0:02:55.4]} 12. dxe5 {[%clk 0:02:11]} 12... dxe5
{[%clk 0:02:54.1]} 13. Qb3 {[%clk 0:02:04.9]} 13... Rad8 {[%clk 0:02:46.5]} 14.
Nc4 {[%clk 0:01:49.6]} 14... Bxe4 {[%clk 0:02:32.6]} 15. Ncd2 {[%clk 0:01:00.1]}
15... Bd5 {[%clk 0:02:29.6]} 16. c4 {[%clk 0:00:59]} 16... Bc6 {[%clk
0:02:29.9]} 17. Rfe1 {[%clk 0:00:59.6]} 17... f6 {[%clk 0:02:26.7]} 18. Ne4
{[%clk 0:00:54.4]} 18... Qf7 {[%clk 0:02:19.4]} 19. Qc3 {[%clk 0:00:51.9]} 19...
Nf4 {[%clk 0:02:18.1]} 20. Nc5 {[%clk 0:00:44.3]} 20... b6 {[%clk 0:02:09.4]}
21. Ne4 {[%clk 0:00:43.7]} 21... Rd3 {[%clk 0:02:02.4]} 22. Qc2 {[%clk
0:00:43.7]} 22... Rxf3 {[%clk 0:02:01.9]} 0-1

[Event "Early-Titled-Tuesday-Blitz-April-02-2024"]
[Site "Chess.com"]
[Date "2024.04.02"]
[Round "5"]
[White "lcmil"]
[Black "dosto07"]
[Result "0-1"]
[WhiteElo "2281"]
[BlackElo "2459"]
[TimeControl "180+1"]
[EndTime "8:52:39 PDT"]
[Termination "dosto07 won on time"]

1. e4 {[%clk 0:02:57.3]} 1... e5 {[%clk 0:02:55.7]} 2. f4 {[%clk 0:02:53.9]}
2... d5 {[%clk 0:02:55]} 3. Nf3 {[%clk 0:02:51.5]} 3... exf4 {[%clk 0:02:54.3]}
4. exd5 {[%clk 0:02:50.3]} 4... Nf6 {[%clk 0:02:54.5]} 5. Bb5+ {[%clk
0:02:48.1]} 5... c6 {[%clk 0:02:54.9]} 6. dxc6 {[%clk 0:02:46.1]} 6... bxc6
{[%clk 0:02:55]} 7. Qe2+ {[%clk 0:02:40.8]} 7... Be7 {[%clk 0:02:55]} 8. Bc4
{[%clk 0:02:39.5]} 8... O-O {[%clk 0:02:53.5]} 9. O-O {[%clk 0:02:34]} 9... Bg4
{[%clk 0:02:49.3]} 10. d4 {[%clk 0:02:28.7]} 10... Bd6 {[%clk 0:02:49]} 11. Qd3
{[%clk 0:02:16.9]} 11... Bh5 {[%clk 0:02:43.1]} 12. Ne5 {[%clk 0:01:50]} 12...
c5 {[%clk 0:02:32.2]} 13. Bxf4 {[%clk 0:01:29.3]} 13... cxd4 {[%clk 0:02:31.9]}
14. Qxd4 {[%clk 0:00:48.7]} 14... Qc7 {[%clk 0:02:31.5]} 15. Kh1 {[%clk
0:00:18.4]} 15... Nc6 {[%clk 0:02:23.1]} 0-1

[Event "Early-Titled-Tuesday-Blitz-April-02-2024"]
[Site "Chess.com"]
[Date "2024.04.02"]
[Round "5"]
[White "Roosters19"]
[Black "ViratKohl_i"]
[Result "0-1"]
[WhiteElo "2285"]
[BlackElo "2505"]
[TimeControl "180+1"]
[EndTime "8:52:45 PDT"]
[Termination "ViratKohl_i won by resignation"]

1. d4 {[%clk 0:03:00.9]} 1... Nf6 {[%clk 0:02:58]} 2. Bg5 {[%clk 0:02:55.3]}
2... g6 {[%clk 0:02:55.7]} 3. Bxf6 {[%clk 0:02:55.1]} 3... exf6 {[%clk
0:02:56.6]} 4. e3 {[%clk 0:02:55.5]} 4... Bg7 {[%clk 0:02:55.8]} 5. Ne2 {[%clk
0:02:55.6]} 5... O-O {[%clk 0:02:56]} 6. Nf4 {[%clk 0:02:55.7]} 6... d5 {[%clk
0:02:53.4]} 7. h4 {[%clk 0:02:54.8]} 7... Re8 {[%clk 0:02:43.6]} 8. c4 {[%clk
0:02:53]} 8... c6 {[%clk 0:02:39]} 9. cxd5 {[%clk 0:02:52]} 9... Qd6 {[%clk
0:02:35.7]} 10. Be2 {[%clk 0:02:48.7]} 10... Bh6 {[%clk 0:02:24.5]} 11. Nd3
{[%clk 0:02:32.9]} 11... cxd5 {[%clk 0:02:16.9]} 12. Nc3 {[%clk 0:02:30.8]}
12... Nc6 {[%clk 0:02:13.5]} 13. Qb3 {[%clk 0:02:20.3]} 13... Be6 {[%clk
0:02:02]} 14. h5 {[%clk 0:02:11.3]} 14... Bg7 {[%clk 0:01:50.8]} 15. hxg6 {[%clk
0:01:48.6]} 15... hxg6 {[%clk 0:01:48.9]} 16. Kd2 {[%clk 0:01:40.3]} 16... Na5
{[%clk 0:01:43.2]} 17. Qc2 {[%clk 0:01:34.2]} 17... Nc4+ {[%clk 0:01:41.5]} 18.
Ke1 {[%clk 0:01:33.8]} 18... Bf5 {[%clk 0:01:38.5]} 19. Rc1 {[%clk 0:01:28]}
19... Rxe3 {[%clk 0:01:27.1]} 20. fxe3 {[%clk 0:01:18.1]} 20... Qg3+ {[%clk
0:01:25]} 21. Kd1 {[%clk 0:01:16]} 21... Nxe3+ {[%clk 0:01:23.3]} 22. Kd2 {[%clk
0:01:15.9]} 22... Nxc2 {[%clk 0:01:20.9]} 23. Kxc2 {[%clk 0:01:16.8]} 0-1

[Event "Early-Titled-Tuesday-Blitz-April-02-2024"]
[Site "Chess.com"]
[Date "2024.04.02"]
[Round "5"]
[White "AlainBruxelles"]
[Black "Dixit_Nikhil"]
[Result "0-1"]
[WhiteElo "2318"]
[BlackElo "2640"]
[TimeControl "180+1"]
[EndTime "8:52:49 PDT"]
[Termination "Dixit_Nikhil won by resignation"]

1. e4 {[%clk 0:03:00.9]} 1... c5 {[%clk 0:02:56.8]} 2. Nf3 {[%clk 0:02:59.1]}
2... Nc6 {[%clk 0:02:56.4]} 3. Nc3 {[%clk 0:02:56.1]} 3... e5 {[%clk 0:02:54.7]}
4. g3 {[%clk 0:02:52.3]} 4... d6 {[%clk 0:02:52.4]} 5. Bg2 {[%clk 0:02:52.2]}
5... Be7 {[%clk 0:02:52.8]} 6. O-O {[%clk 0:02:52.1]} 6... Nf6 {[%clk
0:02:53.1]} 7. d3 {[%clk 0:02:52.1]} 7... O-O {[%clk 0:02:53.6]} 8. h3 {[%clk
0:02:51.4]} 8... h6 {[%clk 0:02:50.8]} 9. Be3 {[%clk 0:02:50.6]} 9... Be6 {[%clk
0:02:51]} 10. Qd2 {[%clk 0:02:50.5]} 10... Qd7 {[%clk 0:02:51]} 11. Kh2 {[%clk
0:02:49.7]} 11... d5 {[%clk 0:02:50.1]} 12. exd5 {[%clk 0:02:48.2]} 12... Nxd5
{[%clk 0:02:51]} 13. Nxd5 {[%clk 0:02:47.9]} 13... Bxd5 {[%clk 0:02:51.6]} 14.
Rae1 {[%clk 0:02:34.3]} 14... f5 {[%clk 0:02:39.5]} 15. Qc3 {[%clk 0:02:24.6]}
15... b6 {[%clk 0:02:20.1]} 16. Nxe5 {[%clk 0:02:21.8]} 16... Nxe5 {[%clk
0:02:18.9]} 17. Qxe5 {[%clk 0:02:19.4]} 17... Bxg2 {[%clk 0:02:18.5]} 18. Kxg2
{[%clk 0:02:19.3]} 18... Bf6 {[%clk 0:02:08.6]} 19. Qf4 {[%clk 0:02:16.1]} 19...
Bxb2 {[%clk 0:01:54.1]} 20. Qf3 {[%clk 0:02:15.1]} 20... Bc3 {[%clk 0:01:52.3]}
21. Re2 {[%clk 0:02:14.6]} 21... Rae8 {[%clk 0:01:51.2]} 22. h4 {[%clk
0:02:04.4]} 22... Re7 {[%clk 0:01:49.1]} 23. Bd2 {[%clk 0:02:01.6]} 23... Rxe2
{[%clk 0:01:47.1]} 24. Qxe2 {[%clk 0:02:01.8]} 24... Qd5+ {[%clk 0:01:46.2]} 25.
Kh2 {[%clk 0:02:00.9]} 25... Bxd2 {[%clk 0:01:45.8]} 26. Qxd2 {[%clk 0:02:00.9]}
26... Qxa2 {[%clk 0:01:46.1]} 27. Re1 {[%clk 0:01:57.7]} 27... Qf7 {[%clk
0:01:45]} 28. Qf4 {[%clk 0:01:52.1]} 28... a5 {[%clk 0:01:40.2]} 29. Qd6 {[%clk
0:01:51]} 29... f4 {[%clk 0:01:39]} 30. Re7 {[%clk 0:01:46.4]} 30... fxg3+
{[%clk 0:01:36.2]} 31. fxg3 {[%clk 0:01:42.5]} 31... Qf2+ {[%clk 0:01:32.6]} 32.
Kh3 {[%clk 0:01:42.8]} 32... Qf1+ {[%clk 0:01:32.4]} 0-1

[Event "Early-Titled-Tuesday-Blitz-April-02-2024"]
[Site "Chess.com"]
[Date "2024.04.02"]
[Round "5"]
[White "Rurep26"]
[Black "Firouzja2003"]
[Result "0-1"]
[WhiteElo "2720"]
[BlackElo "3104"]
[TimeControl "180+1"]
[EndTime "8:53:13 PDT"]
[Termination "Firouzja2003 won by resignation"]

1. d4 {[%clk 0:03:00.9]} 1... Nf6 {[%clk 0:02:59.7]} 2. Bf4 {[%clk 0:02:59.3]}
2... g6 {[%clk 0:02:59.8]} 3. Nc3 {[%clk 0:02:53.7]} 3... d5 {[%clk 0:02:59.5]}
4. e3 {[%clk 0:02:54.1]} 4... Bg7 {[%clk 0:02:59.6]} 5. h4 {[%clk 0:02:54.7]}
5... h5 {[%clk 0:02:59.9]} 6. Nf3 {[%clk 0:02:54.8]} 6... Bg4 {[%clk 0:02:59.6]}
7. Qd2 {[%clk 0:02:54.1]} 7... c5 {[%clk 0:02:56.5]} 8. Bb5+ {[%clk 0:02:44.6]}
8... Nc6 {[%clk 0:02:52.3]} 9. Ne5 {[%clk 0:02:44.9]} 9... O-O {[%clk
0:02:52.6]} 10. Nxc6 {[%clk 0:02:42]} 10... bxc6 {[%clk 0:02:50.4]} 11. Bxc6
{[%clk 0:02:42.9]} 11... Rc8 {[%clk 0:02:50.8]} 12. Bb7 {[%clk 0:02:42.8]} 12...
cxd4 {[%clk 0:02:51.1]} 13. exd4 {[%clk 0:02:39.7]} 13... Rc4 {[%clk 0:02:51.2]}
14. O-O {[%clk 0:02:19.4]} 14... Qb6 {[%clk 0:02:38.6]} 15. Bxd5 {[%clk
0:02:06.7]} 15... Rxd4 {[%clk 0:02:38.5]} 16. Qc1 {[%clk 0:01:23.8]} 16... Nxd5
{[%clk 0:02:37.9]} 17. Nxd5 {[%clk 0:01:23.2]} 17... Rxd5 {[%clk 0:02:38.5]} 18.
c3 {[%clk 0:01:23.2]} 18... Rc8 {[%clk 0:02:36.4]} 19. Re1 {[%clk 0:01:19.5]}
19... Rb5 {[%clk 0:02:35.9]} 20. Rxe7 {[%clk 0:01:17]} 20... Rxb2 {[%clk
0:02:35.9]} 21. Bg3 {[%clk 0:01:16.7]} 21... Bf5 {[%clk 0:02:28.9]} 22. Qf4
{[%clk 0:01:08.9]} 22... Bxc3 {[%clk 0:02:29]} 23. Rd1 {[%clk 0:01:04.8]} 23...
Rb1 {[%clk 0:02:29.2]} 24. Rxb1 {[%clk 0:01:03]} 24... Qxb1+ {[%clk 0:02:28.8]}
25. Kh2 {[%clk 0:01:03.7]} 25... Qxa2 {[%clk 0:02:27.9]} 26. Qd6 {[%clk
0:00:55.4]} 26... a5 {[%clk 0:02:23]} 27. Ra7 {[%clk 0:00:37.6]} 27... Qc4
{[%clk 0:02:22.6]} 28. Qe7 {[%clk 0:00:33.3]} 28... a4 {[%clk 0:02:20.2]} 29.
Bd6 {[%clk 0:00:24.8]} 29... Qe6 {[%clk 0:02:14]} 30. Qxe6 {[%clk 0:00:21.2]}
30... Bxe6 {[%clk 0:02:13.9]} 31. Rxa4 {[%clk 0:00:21.9]} 31... Bf6 {[%clk
0:02:12.6]} 32. Bg3 {[%clk 0:00:18.7]} 32... Rc4 {[%clk 0:02:12]} 0-1

[Event "Early-Titled-Tuesday-Blitz-April-02-2024"]
[Site "Chess.com"]
[Date "2024.04.02"]
[Round "5"]
[White "campochess"]
[Black "Massakru"]
[Result "0-1"]
[WhiteElo "2189"]
[BlackElo "2386"]
[TimeControl "180+1"]
[EndTime "8:53:15 PDT"]
[Termination "Massakru won by resignation"]

1. Nf3 {[%clk 0:02:59.8]} 1... d5 {[%clk 0:02:58.9]} 2. b3 {[%clk 0:02:59.7]}
2... Nc6 {[%clk 0:02:57.3]} 3. Bb2 {[%clk 0:02:58.4]} 3... Bf5 {[%clk
0:02:57.2]} 4. e3 {[%clk 0:02:58.2]} 4... a6 {[%clk 0:02:56.4]} 5. Nc3 {[%clk
0:02:54.3]} 5... Nf6 {[%clk 0:02:55.4]} 6. Ne2 {[%clk 0:02:54.3]} 6... h6 {[%clk
0:02:53.6]} 7. Nf4 {[%clk 0:02:52.3]} 7... Qd6 {[%clk 0:02:48.3]} 8. Bd3 {[%clk
0:02:51.6]} 8... Bg4 {[%clk 0:02:41.7]} 9. h3 {[%clk 0:02:49.3]} 9... Bxf3
{[%clk 0:02:41.8]} 10. gxf3 {[%clk 0:02:45.4]} 10... e5 {[%clk 0:02:41.2]} 11.
Ng2 {[%clk 0:02:44.3]} 11... O-O-O {[%clk 0:02:32.4]} 12. Qe2 {[%clk 0:02:31.7]}
12... Nb4 {[%clk 0:02:21.6]} 13. O-O-O {[%clk 0:02:29.7]} 13... Nxa2+ {[%clk
0:02:19.8]} 14. Kb1 {[%clk 0:02:29.8]} 14... Nb4 {[%clk 0:02:19.6]} 15. Bf5+
{[%clk 0:02:29.6]} 15... Kb8 {[%clk 0:02:19.2]} 16. Ba3 {[%clk 0:02:27.8]} 16...
Qb6 {[%clk 0:02:07.9]} 17. Bb2 {[%clk 0:02:19]} 17... d4 {[%clk 0:02:05]} 18.
exd4 {[%clk 0:02:17]} 18... exd4 {[%clk 0:02:04.8]} 19. Qc4 {[%clk 0:02:05.2]}
19... Rd5 {[%clk 0:01:43.8]} 20. Be4 {[%clk 0:01:58.5]} 20... Nxe4 {[%clk
0:01:35.4]} 21. fxe4 {[%clk 0:01:58.2]} 21... Rd7 {[%clk 0:01:35.9]} 22. Nf4
{[%clk 0:01:53.2]} 22... Bc5 {[%clk 0:01:24.1]} 23. Nd5 {[%clk 0:01:51.9]} 23...
Nxd5 {[%clk 0:01:23.1]} 24. exd5 {[%clk 0:01:51.4]} 24... Rhd8 {[%clk
0:01:22.9]} 25. Rhe1 {[%clk 0:01:49.1]} 25... Rxd5 {[%clk 0:01:22.2]} 26. Re4
{[%clk 0:01:47.7]} 26... f6 {[%clk 0:01:15.8]} 27. Rde1 {[%clk 0:01:46.9]} 27...
d3 {[%clk 0:01:14.5]} 28. cxd3 {[%clk 0:01:37]} 28... Bxf2 {[%clk 0:01:10.4]}
29. Re8 {[%clk 0:01:28.7]} 29... Bxe1 {[%clk 0:01:08.2]} 30. Qxd5 {[%clk
0:01:28.8]} 30... Rxe8 {[%clk 0:01:07.1]} 31. Bd4 {[%clk 0:01:26.2]} 31... Qb5
{[%clk 0:01:02.7]} 0-1

[Event "Early-Titled-Tuesday-Blitz-April-02-2024"]
[Site "Chess.com"]
[Date "2024.04.02"]
[Round "5"]
[White "LikeWater"]
[Black "vladoboch"]
[Result "0-1"]
[WhiteElo "2646"]
[BlackElo "2525"]
[TimeControl "180+1"]
[EndTime "8:53:24 PDT"]
[Termination "vladoboch won by resignation"]

1. Nf3 {[%clk 0:02:59.5]} 1... c5 {[%clk 0:02:59.5]} 2. g3 {[%clk 0:03:00.4]}
2... d6 {[%clk 0:02:59.8]} 3. Bg2 {[%clk 0:02:58.2]} 3... Nc6 {[%clk 0:02:59.5]}
4. O-O {[%clk 0:02:57.9]} 4... Bd7 {[%clk 0:02:59.8]} 5. c3 {[%clk 0:02:52.4]}
5... g6 {[%clk 0:02:51.5]} 6. d4 {[%clk 0:02:52]} 6... Bg7 {[%clk 0:02:51.8]} 7.
dxc5 {[%clk 0:02:46.9]} 7... dxc5 {[%clk 0:02:52.7]} 8. Be3 {[%clk 0:02:46.1]}
8... b6 {[%clk 0:02:45.4]} 9. Qb3 {[%clk 0:02:18.8]} 9... Nf6 {[%clk 0:02:39]}
10. Rd1 {[%clk 0:02:17.2]} 10... O-O {[%clk 0:02:32.5]} 11. Ng5 {[%clk
0:02:16.5]} 11... Rc8 {[%clk 0:02:26.7]} 12. Na3 {[%clk 0:02:07]} 12... h6
{[%clk 0:02:08.5]} 13. Nh3 {[%clk 0:02:05]} 13... Ne5 {[%clk 0:02:04.7]} 14. Nb5
{[%clk 0:01:49.9]} 14... a6 {[%clk 0:01:31.4]} 15. Na7 {[%clk 0:01:38.3]} 15...
Ra8 {[%clk 0:01:31.7]} 16. Bxa8 {[%clk 0:01:32.9]} 16... Qxa8 {[%clk 0:01:31.5]}
17. Qxb6 {[%clk 0:01:33.5]} 17... Bxh3 {[%clk 0:01:30.6]} 18. f3 {[%clk
0:01:23.8]} 18... Nxf3+ {[%clk 0:01:30.1]} 19. exf3 {[%clk 0:01:19.6]} 19...
Qxf3 {[%clk 0:01:31]} 0-1

[Event "Early-Titled-Tuesday-Blitz-April-02-2024"]
[Site "Chess.com"]
[Date "2024.04.02"]
[Round "5"]
[White "francyIM"]
[Black "MaestroCheck"]
[Result "1-0"]
[WhiteElo "2795"]
[BlackElo "2531"]
[TimeControl "180+1"]
[EndTime "8:53:29 PDT"]
[Termination "francyIM won by checkmate"]

1. e4 {[%clk 0:03:00.9]} 1... c5 {[%clk 0:02:59.7]} 2. Nf3 {[%clk 0:03:00.5]}
2... e6 {[%clk 0:03:00.3]} 3. c3 {[%clk 0:03:00.3]} 3... Nf6 {[%clk 0:03:00.4]}
4. e5 {[%clk 0:03:00]} 4... Nd5 {[%clk 0:03:01.1]} 5. d4 {[%clk 0:03:00.3]} 5...
cxd4 {[%clk 0:03:02]} 6. cxd4 {[%clk 0:02:47.9]} 6... d6 {[%clk 0:03:01]} 7. a3
{[%clk 0:02:48.3]} 7... Be7 {[%clk 0:03:00.1]} 8. Bd3 {[%clk 0:02:48.4]} 8...
O-O {[%clk 0:02:46.6]} 9. h4 {[%clk 0:02:48.4]} 9... h6 {[%clk 0:02:27.2]} 10.
Qe2 {[%clk 0:02:47]} 10... Qc7 {[%clk 0:01:53.7]} 11. Bd2 {[%clk 0:02:45.8]}
11... Bd7 {[%clk 0:01:49.5]} 12. Nc3 {[%clk 0:02:45.5]} 12... Nxc3 {[%clk
0:01:46.4]} 13. bxc3 {[%clk 0:02:36.8]} 13... Bc6 {[%clk 0:01:46.6]} 14. Rh3
{[%clk 0:02:36]} 14... Kh8 {[%clk 0:01:40.5]} 15. Bxh6 {[%clk 0:02:29.4]} 15...
Bxf3 {[%clk 0:01:14.3]} 16. Qd2 {[%clk 0:02:07.1]} 16... Bh5 {[%clk 0:00:52.2]}
17. Bxg7+ {[%clk 0:01:57]} 17... Kxg7 {[%clk 0:00:53.1]} 18. Rg3+ {[%clk
0:01:57.4]} 18... Bg6 {[%clk 0:00:53.6]} 19. h5 {[%clk 0:01:58.3]} 19... Rh8
{[%clk 0:00:44.9]} 20. Bxg6 {[%clk 0:01:54.8]} 20... fxg6 {[%clk 0:00:43.4]} 21.
Rxg6+ {[%clk 0:01:54.6]} 21... Kf7 {[%clk 0:00:43.9]} 22. g4 {[%clk 0:01:54.3]}
22... dxe5 {[%clk 0:00:43.4]} 23. Kf1 {[%clk 0:01:53.3]} 23... exd4 {[%clk
0:00:42]} 24. Qxd4 {[%clk 0:01:49.9]} 24... Nc6 {[%clk 0:00:42.5]} 25. Qg7+
{[%clk 0:01:49.1]} 25... Ke8 {[%clk 0:00:35.1]} 26. Qxh8+ {[%clk 0:01:49]} 26...
Bf8 {[%clk 0:00:36]} 27. Rxe6+ {[%clk 0:01:44.9]} 27... Kd7 {[%clk 0:00:33.8]}
28. Qf6 {[%clk 0:01:44.5]} 28... Ne7 {[%clk 0:00:29.1]} 29. Rd1+ {[%clk
0:01:42]} 29... Ke8 {[%clk 0:00:28.6]} 30. Qg6# {[%clk 0:01:41.7]} 1-0